fUST/lending_fUST_20260622
["ID","MTS","AMOUNT","RATE_DAILY","PERIOD"]
[425996623,1782087057000,-500.0,0.00020622,2]
[425996628,1782087057000,-527.35515134,0.00020645,2]
[425996625,1782087057000,-1543.65,0.00020622,2]
[425996626,1782087057000,-500.0,0.00020622,2]
[425996629,1782087057000,-399.22899203,0.00020653,2]
[425996624,1782087057000,-500.0,0.00020622,2]
[425996627,1782087057000,-518.52,0.00020622,2]
[425996633,1782087057000,-224.13784845,0.00020674,2]
[425996636,1782087057000,-371.78868319,0.00020674,2]
[425996644,1782087057000,-1591.68,0.00020701,2]
[425996637,1782087057000,-541.50095066,0.00020687,2]
[425996645,1782087057000,-9658.61,0.00020701,2]
[425996635,1782087057000,-163.07242917,0.00020674,2]
[425996669,1782087057000,-541.643681,0.00020771,2]
[425996680,1782087057000,-522.10773863,0.00020799,2]
[425996671,1782087057000,-527.35515134,0.00020786,2]
[425996703,1782087057000,-500.0,0.00020896,2]
[425996706,1782087057000,-1434.69,0.00020896,2]
[425996707,1782087057000,-1763.49,0.00020896,2]
[425996702,1782087057000,-500.0,0.00020896,2]
[425996705,1782087057000,-500.0,0.00020896,2]
[425996704,1782087057000,-610.06,0.00020896,2]
[425996711,1782087057000,-1543.65,0.00020896,2]
[425996718,1782087057000,-9658.61,0.00020975,2]
[425996716,1782087057000,-525.75909867,0.0002094,2]
[425996712,1782087057000,-500.0,0.00020896,2]
[425996713,1782087057000,-518.52,0.00020896,2]
[425996720,1782087057000,-500.0,0.00020986,2]
[425996714,1782087057000,-260.03059436,0.000209,2]
[425996719,1782087057000,-530.9,0.00020975,2]
[425996715,1782087057000,-300.0,0.000209,2]
[425996717,1782087057000,-1591.68,0.00020975,2]
[425996722,1782087057000,-2613.07,0.00020986,2]
[425996721,1782087057000,-521.04,0.00020986,2]
[425996723,1782087057000,-500.0,0.00020986,2]
[425996724,1782087057000,-500.0,0.00020986,2]
[425996726,1782087057000,-500.0,0.00020986,2]
[425996727,1782087057000,-200.0,0.00021,2]
[425996729,1782087057000,-46168.66786683,0.00021,2]
[425996725,1782087057000,-1661.73,0.00020986,2]
[425996730,1782087057000,-4000.0,0.00021,2]
[425996728,1782087057000,-281.27281697,0.00021,2]
[425996672,1782087057000,-500.0,0.00020793,2]
[425996701,1782087057000,-935.54,0.00020896,2]
[425996710,1782087057000,-500.0,0.00020896,2]
[425996732,1782087057000,-5310.45497324,0.00021,2]
[425996709,1782087057000,-500.0,0.00020896,2]
[425996682,1782087057000,-212.97,0.000208,2]
[425996678,1782087057000,-598.3,0.00020793,2]
[425996673,1782087057000,-630.86,0.00020793,2]
[425996674,1782087057000,-559.71,0.00020793,2]
[425996684,1782087057000,-1312.7837,0.000208,2]
[425996681,1782087057000,-1032.205,0.000208,2]
[425996677,1782087057000,-1000.03,0.00020793,2]
[425996675,1782087057000,-717.82,0.00020793,2]
[425996700,1782087057000,-500.0,0.00020896,2]
[425996676,1782087057000,-500.0,0.00020793,2]
[425996731,1782087057000,-50000.0,0.00021,2]
[425996679,1782087057000,-1026.41,0.00020793,2]
[425996685,1782087057000,-798.00014565,0.000208,2]
[425996688,1782087057000,-500.0,0.00020812,2]
[425996683,1782087057000,-212.97,0.000208,2]
[425996697,1782087057000,-767.02,0.00020821,2]
[425996698,1782087057000,-500.0,0.00020896,2]
[425996696,1782087057000,-500.0,0.00020821,2]
[425996708,1782087057000,-1413.02,0.00020896,2]
[425996699,1782087057000,-858.0,0.00020896,2]
[425996691,1782087057000,-500.0,0.00020812,2]
[425996693,1782087057000,-500.0,0.00020812,2]
[425996695,1782087057000,-535.89,0.00020821,2]
[425996690,1782087057000,-500.0,0.00020812,2]
[425996692,1782087057000,-627.12459633,0.00020812,2]
[425996687,1782087057000,-500.0,0.00020812,2]
[425996686,1782087057000,-500.0,0.00020812,2]
[425996694,1782087057000,-500.0,0.00020812,2]
[425996689,1782087057000,-500.0,0.00020812,2]
[425996767,1782087058000,-3000.0,0.000211,2]
[425996764,1782087058000,-535.89,0.00021095,2]
[425996770,1782087058000,-3000.0,0.0002113,2]
[425996766,1782087058000,-767.02,0.00021095,2]
[425996774,1782087058000,-3000.0,0.0002116,2]
[425996763,1782087058000,-3000.0,0.0002109,2]
[425996773,1782087058000,-3000.0,0.0002115,2]
[425996769,1782087058000,-3000.0,0.0002112,2]
[425996768,1782087058000,-3000.0,0.0002111,2]
[425996765,1782087058000,-500.0,0.00021095,2]
[425996771,1782087058000,-1259.8596055,0.00021134,2]
[425996776,1782087058000,-500.0,0.0002117,2]
[425996786,1782087058000,-1413.02,0.0002117,2]
[425996779,1782087058000,-935.54,0.0002117,2]
[425996781,1782087058000,-500.0,0.0002117,2]
[425996780,1782087058000,-582.31,0.0002117,2]
[425996777,1782087058000,-858.0,0.0002117,2]
[425996778,1782087058000,-500.0,0.0002117,2]
[425996782,1782087058000,-610.06,0.0002117,2]
[425996783,1782087058000,-500.0,0.0002117,2]
[425996785,1782087058000,-1763.49,0.0002117,2]
[425996794,1782087058000,-3000.0,0.0002119,2]
[425996784,1782087058000,-1434.69,0.0002117,2]
[425996795,1782087058000,-152.0,0.00021196,2]
[425996792,1782087058000,-935.23435847,0.00021173,2]
[425996762,1782087058000,-500.0,0.00021086,2]
[425996775,1782087058000,-3000.0,0.0002117,2]
[425996772,1782087058000,-3000.0,0.0002114,2]
[425996742,1782087058000,-3000.0,0.0002105,2]
[425996754,1782087058000,-3000.0,0.0002107,2]
[425996789,1782087058000,-1543.65,0.0002117,2]
[425996735,1782087058000,-3000.0,0.00021,2]
[425996734,1782087058000,-10000.0,0.00021,5]
[425996733,1782087058000,-1617.12970302,0.00021,2]
[425996736,1782087058000,-1000.0,0.00021002,2]
[425996739,1782087058000,-3000.0,0.0002102,2]
[425996743,1782087058000,-2338.294515,0.00021051,2]
[425996748,1782087058000,-559.71,0.00021067,2]
[425996746,1782087058000,-500.0,0.00021067,2]
[425996741,1782087058000,-3000.0,0.0002104,2]
[425996747,1782087058000,-630.86,0.00021067,2]
[425996740,1782087058000,-3000.0,0.0002103,2]
[425996744,1782087058000,-1511.765431,0.00021051,2]
[425996738,1782087058000,-3000.0,0.0002101,2]
[425996745,1782087058000,-3000.0,0.0002106,2]
[425996737,1782087058000,-492.0,0.00021002,2]
[425996750,1782087058000,-500.0,0.00021067,2]
[425996749,1782087058000,-717.82,0.00021067,2]
[425996751,1782087058000,-1000.03,0.00021067,2]
[425996752,1782087058000,-598.3,0.00021067,2]
[425996753,1782087058000,-1026.41,0.00021067,2]
[425996756,1782087058000,-500.0,0.00021086,2]
[425996755,1782087058000,-3000.0,0.0002108,2]
[425996761,1782087058000,-500.0,0.00021086,2]
[425996760,1782087058000,-500.0,0.00021086,2]
[425996759,1782087058000,-500.0,0.00021086,2]
[425996757,1782087058000,-500.0,0.00021086,2]
[425996758,1782087058000,-500.0,0.00021086,2]
[425996791,1782087058000,-518.52,0.0002117,2]
[425996808,1782087058000,-1591.68,0.00021249,2]
[425996790,1782087058000,-500.0,0.0002117,2]
[425996832,1782087058000,-3000.0,0.0002132,2]
[425996827,1782087058000,-3000.0,0.0002128,2]
[425996826,1782087058000,-5000.0,0.00021279,2]
[425996829,1782087058000,-3000.0,0.000213,2]
[425996822,1782087058000,-7265.22374339,0.00021279,2]
[425996831,1782087058000,-192.0,0.00021317,2]
[425996830,1782087058000,-3000.0,0.0002131,2]
[425996828,1782087058000,-3000.0,0.0002129,2]
[425996843,1782087058000,-3000.0,0.0002135,2]
[425996787,1782087058000,-500.0,0.0002117,2]
[425996847,1782087058000,-500.0,0.0002136,2]
[425996844,1782087058000,-162.51929348,0.00021356,2]
[425996845,1782087058000,-3000.0,0.0002136,2]
[425996846,1782087058000,-500.0,0.0002136,2]
[425996836,1782087058000,-630.86,0.00021341,2]
[425996839,1782087058000,-500.0,0.00021341,2]
[425996840,1782087058000,-1000.03,0.00021341,2]
[425996834,1782087058000,-3000.0,0.0002134,2]
[425996838,1782087058000,-717.82,0.00021341,2]
[425996841,1782087058000,-598.3,0.00021341,2]
[425996842,1782087058000,-1026.41,0.00021341,2]
[425996837,1782087058000,-559.71,0.00021341,2]
[425996848,1782087058000,-500.0,0.0002136,2]
[425996850,1782087058000,-304.71,0.0002136,2]
[425996852,1782087058000,-218165.15219887,0.00021362,2]
[425996849,1782087058000,-172.38,0.0002136,2]
[425996851,1782087058000,-500.0,0.0002136,2]
[425996833,1782087058000,-3000.0,0.0002133,2]
[425996825,1782087058000,-5000.0,0.00021279,2]
[425996835,1782087058000,-500.0,0.00021341,2]
[425996823,1782087058000,-5000.0,0.00021279,2]
[425996793,1782087058000,-3000.0,0.0002118,2]
[425996788,1782087058000,-500.0,0.0002117,2]
[425996824,1782087058000,-5000.0,0.00021279,2]
[425996798,1782087058000,-3000.0,0.0002121,2]
[425996799,1782087058000,-3000.0,0.0002122,2]
[425996807,1782087058000,-3000.0,0.0002124,2]
[425996797,1782087058000,-3000.0,0.000212,2]
[425996802,1782087058000,-3460.0,0.00021239,2]
[425996803,1782087058000,-3460.0,0.00021239,2]
[425996801,1782087058000,-3000.0,0.0002123,2]
[425996806,1782087058000,-3460.0,0.00021239,2]
[425996805,1782087058000,-3460.0,0.00021239,2]
[425996804,1782087058000,-3460.0,0.00021239,2]
[425996800,1782087058000,-160.0,0.00021229,6]
[425996796,1782087058000,-152.0,0.00021196,2]
[425996819,1782087058000,-500.0,0.0002126,2]
[425996821,1782087058000,-2283.685056,0.00021277,2]
[425996809,1782087058000,-9658.61,0.00021249,2]
[425996810,1782087058000,-530.9,0.00021249,2]
[425996812,1782087058000,-3000.0,0.0002126,2]
[425996811,1782087058000,-3000.0,0.0002125,2]
[425996816,1782087058000,-500.0,0.0002126,2]
[425996813,1782087058000,-500.0,0.0002126,2]
[425996815,1782087058000,-2613.07,0.0002126,2]
[425996818,1782087058000,-1661.73,0.0002126,2]
[425996814,1782087058000,-521.04,0.0002126,2]
[425996817,1782087058000,-500.0,0.0002126,2]
[425996820,1782087058000,-3000.0,0.0002127,2]
[425996855,1782087059000,-4318.1455279,0.00021362,2]
[425996853,1782087059000,-3715.72626716,0.00021362,2]
[425996854,1782087059000,-16269.72023898,0.00021362,2]
[425996856,1782087059000,-2858.13287074,0.00021362,2]
[425996858,1782087059000,-1286.66487975,0.00015966,2]
[425996859,1782087059000,-570.18507075,0.00016511,2]
[425996860,1782087059000,-1494.4157253,0.00013357,2]
[425996861,1782087059000,-1001.97867047,0.00013357,2]
[425996857,1782087059000,-215840.15279331,0.00021362,2]
[425996876,1782087978000,10000.0,0.0001,10]
[425996926,1782088233000,-42.9698576,0.00010925,2]
[425996928,1782088233000,-605.2244117,0.00011035,2]
[425996916,1782088233000,-765.43130723,0.00010925,2]
[425996940,1782088233000,-4004.61143875,0.00011146,2]
[425996938,1782088233000,-3237.72232079,0.00011035,2]
[425996924,1782088233000,-483.97683138,0.00010925,2]
[425997063,1782088239000,-500.0,0.00016438,2]
[425997059,1782088239000,-485.489841,0.00015423,2]
[425997061,1782088239000,-10000.0,0.00015648,2]
[425997057,1782088239000,-995.38856125,0.00011146,2]
[425997070,1782088239000,-500.0,0.00016438,2]
[425997079,1782088239000,-500.0,0.00016438,2]
[425997075,1782088239000,-500.0,0.00016438,2]
[425997077,1782088239000,-500.0,0.00016438,2]
[425997083,1782088239000,-151.0,0.000167,2]
[425997081,1782088239000,-500.0,0.00016438,2]
[425997065,1782088239000,-500.0,0.00016438,2]
[425997092,1782088239000,-151.0,0.000167,2]
[425997089,1782088239000,-151.0,0.000167,2]
[425997094,1782088239000,-151.0,0.000167,2]
[425997096,1782088239000,-151.0,0.000167,2]
[425997087,1782088239000,-151.0,0.000167,2]
[425997072,1782088239000,-500.0,0.00016438,2]
[425997085,1782088239000,-151.0,0.000167,2]
[425997074,1782088239000,-500.0,0.00016438,2]
[425997068,1782088239000,-500.0,0.00016438,2]
[425997345,1782088240000,-4024.43,0.00017258,2]
[425997341,1782088240000,-500.0,0.00017258,2]
[425997343,1782088240000,-500.0,0.00017258,2]
[425997349,1782088240000,-500.0,0.00017258,2]
[425997339,1782088240000,-500.0,0.00017258,2]
[425997329,1782088240000,-500.0,0.00017256,2]
[425997335,1782088240000,-1613.61,0.00017258,2]
[425997327,1782088240000,-500.0,0.00017256,2]
[425997347,1782088240000,-500.0,0.00017258,2]
[425997331,1782088240000,-587.83,0.00017256,2]
[425997333,1782088240000,-514.55,0.00017257,2]
[425997337,1782088240000,-500.0,0.00017258,2]
[425997360,1782088240000,-500.0,0.0001726,2]
[425997351,1782088240000,-500.0,0.00017259,2]
[425997362,1782088240000,-500.0,0.0001726,2]
[425997353,1782088240000,-500.0,0.00017259,2]
[425997318,1782088240000,-500.0,0.00017256,2]
[425997359,1782088240000,-500.0,0.00017259,2]
[425997355,1782088240000,-500.0,0.00017259,2]
[425997364,1782088240000,-500.0,0.0001726,2]
[425997368,1782088240000,-500.0,0.0001726,2]
[425997366,1782088240000,-500.0,0.0001726,2]
[425997370,1782088240000,-445.0,0.00017282,2]
[425997372,1782088240000,-186.0,0.00017282,2]
[425997374,1782088240000,-958.0,0.00017282,2]
[425997384,1782088240000,-500.0,0.00017505,2]
[425997376,1782088240000,-600.0,0.00017325,2]
[425997357,1782088240000,-500.0,0.00017259,2]
[425997321,1782088240000,-500.0,0.00017256,2]
[425997320,1782088240000,-500.0,0.00017256,2]
[425997316,1782088240000,-500.0,0.00017256,2]
[425997281,1782088240000,-457.16940956,0.0001714,2]
[425997283,1782088240000,-500.0,0.0001714,2]
[425997292,1782088240000,-500.0,0.0001714,2]
[425997282,1782088240000,-151.5,0.0001714,2]
[425997287,1782088240000,-251.39099117,0.0001714,2]
[425997286,1782088240000,-151.5,0.0001714,2]
[425997284,1782088240000,-209.71611797,0.0001714,2]
[425997285,1782088240000,-500.0,0.0001714,2]
[425997288,1782088240000,-175.4911037,0.0001714,2]
[425997290,1782088240000,-500.0,0.0001714,2]
[425997289,1782088240000,-500.0,0.0001714,2]
[425997291,1782088240000,-500.0,0.0001714,2]
[425997296,1782088240000,-500.0,0.0001714,2]
[425997323,1782088240000,-500.0,0.00017256,2]
[425997294,1782088240000,-500.0,0.0001714,2]
[425997300,1782088240000,-500.0,0.0001714,2]
[425997304,1782088240000,-692.39,0.00017231,2]
[425997303,1782088240000,-500.0,0.00017231,2]
[425997301,1782088240000,-576.8241215,0.0001714,2]
[425997302,1782088240000,-151.5,0.0001714,2]
[425997298,1782088240000,-162.28068436,0.0001714,2]
[425997299,1782088240000,-500.0,0.0001714,2]
[425997310,1782088240000,-476.23,0.00017256,2]
[425997308,1782088240000,-1088.78,0.00017231,2]
[425997295,1782088240000,-500.0,0.0001714,2]
[425997312,1782088240000,-500.0,0.00017256,2]
[425997386,1782088240000,-692.39,0.00017505,2]
[425997314,1782088240000,-500.0,0.00017256,2]
[425997306,1782088240000,-500.0,0.00017231,2]
[425997378,1782088240000,-500.0,0.00017334,2]
[425997325,1782088240000,-500.0,0.00017256,2]
[425997380,1782088240000,-500.0,0.00017334,2]
[425997456,1782088240000,-500.0,0.00017608,2]
[425997458,1782088240000,-500.0,0.00017608,2]
[425997460,1782088240000,-657.9619137,0.00017639,2]
[425997462,1782088240000,-718.74,0.0001769,3]
[425997464,1782088240000,-4056.39280265,0.000177,2]
[425997474,1782088240000,-692.39,0.00017779,2]
[425997478,1782088240000,-500.0,0.00017804,2]
[425997475,1782088240000,-1088.78,0.00017779,2]
[425997481,1782088240000,-500.0,0.00017804,2]
[425997483,1782088240000,-500.0,0.00017804,2]
[425997479,1782088240000,-500.0,0.00017804,2]
[425997466,1782088240000,-160.0,0.00017741,2]
[425997485,1782088240000,-500.0,0.00017804,2]
[425997454,1782088240000,-277.52,0.00017608,2]
[425997472,1782088240000,-500.0,0.00017779,2]
[425997487,1782088240000,-500.0,0.00017804,2]
[425997493,1782088240000,-500.0,0.00017804,2]
[425997491,1782088240000,-500.0,0.00017804,2]
[425997498,1782088240000,-1613.61,0.00017806,2]
[425997508,1782088240000,-500.0,0.00017806,2]
[425997497,1782088240000,-514.55,0.00017805,2]
[425997489,1782088240000,-500.0,0.00017804,2]
[425997495,1782088240000,-587.83,0.00017804,2]
[425997501,1782088240000,-500.0,0.00017806,2]
[425997506,1782088240000,-500.0,0.00017806,2]
[425997503,1782088240000,-500.0,0.00017806,2]
[425997505,1782088240000,-4024.43,0.00017806,2]
[425997382,1782088240000,-500.0,0.00017334,2]
[425997468,1782088240000,-417.15472785,0.00017741,2]
[425997448,1782088240000,-500.0,0.00017534,2]
[425997470,1782088240000,-160.0,0.00017741,2]
[425997452,1782088240000,-500.0,0.00017534,2]
[425997388,1782088240000,-396.47,0.00017505,2]
[425997450,1782088240000,-500.0,0.00017534,2]
[425997390,1782088240000,-1088.78,0.00017505,2]
[425997395,1782088240000,-500.0,0.0001753,2]
[425997398,1782088240000,-398.69941207,0.0001753,2]
[425997397,1782088240000,-500.0,0.0001753,2]
[425997402,1782088240000,-500.0,0.0001753,2]
[425997400,1782088240000,-500.0,0.0001753,2]
[425997404,1782088240000,-500.0,0.0001753,2]
[425997412,1782088240000,-500.0,0.0001753,2]
[425997408,1782088240000,-500.0,0.0001753,2]
[425997410,1782088240000,-500.0,0.0001753,2]
[425997421,1782088240000,-500.0,0.00017532,2]
[425997414,1782088240000,-587.83,0.0001753,2]
[425997416,1782088240000,-514.55,0.00017531,2]
[425997406,1782088240000,-500.0,0.0001753,2]
[425997442,1782088240000,-500.0,0.00017533,2]
[425997446,1782088240000,-165.26,0.00017534,2]
[425997433,1782088240000,-175.22,0.00017533,2]
[425997444,1782088240000,-500.0,0.00017534,2]
[425997439,1782088240000,-500.0,0.00017533,2]
[425997437,1782088240000,-500.0,0.00017533,2]
[425997435,1782088240000,-222.04,0.00017533,2]
[425997428,1782088240000,-500.0,0.00017532,2]
[425997427,1782088240000,-4024.43,0.00017532,2]
[425997425,1782088240000,-574.24,0.00017532,2]
[425997418,1782088240000,-1613.61,0.00017532,2]
[425997419,1782088240000,-558.16,0.00017532,2]
[425997423,1782088240000,-500.0,0.00017532,2]
[425997430,1782088240000,-500.0,0.00017532,2]
[425997589,1782088241000,-1088.78,0.00018327,2]
[425997599,1782088241000,-500.0,0.00018352,2]
[425997593,1782088241000,-500.0,0.00018352,2]
[425997595,1782088241000,-500.0,0.00018352,2]
[425997591,1782088241000,-500.0,0.00018352,2]
[425997582,1782088241000,-500.0,0.00018156,2]
[425997565,1782088241000,-500.0,0.0001808,2]
[425997587,1782088241000,-692.39,0.00018327,2]
[425997580,1782088241000,-500.0,0.00018156,2]
[425997575,1782088241000,-215.4,0.00018082,2]
[425997577,1782088241000,-500.0,0.00018082,2]
[425997597,1782088241000,-500.0,0.00018352,2]
[425997578,1782088241000,-4056.39280265,0.000181,2]
[425997600,1782088241000,-500.0,0.00018352,2]
[425997629,1782088241000,-1865.67977149,0.00018417,2]
[425997606,1782088241000,-500.0,0.00018352,2]
[425997604,1782088241000,-500.0,0.00018352,2]
[425997610,1782088241000,-514.55,0.00018353,2]
[425997602,1782088241000,-500.0,0.00018352,2]
[425997608,1782088241000,-587.83,0.00018352,2]
[425997613,1782088241000,-500.0,0.00018354,2]
[425997617,1782088241000,-4024.43,0.00018354,2]
[425997619,1782088241000,-500.0,0.00018354,2]
[425997621,1782088241000,-500.0,0.00018354,2]
[425997624,1782088241000,-500.0,0.00018356,2]
[425997625,1782088241000,-500.0,0.00018356,2]
[425997616,1782088241000,-500.0,0.00018354,2]
[425997634,1782088241000,-4056.39280265,0.000185,2]
[425997571,1782088241000,-500.0,0.00018082,2]
[425997612,1782088241000,-1613.61,0.00018354,2]
[425997584,1782088241000,-4056.39280265,0.000183,2]
[425997510,1782088241000,-334.88,0.00017807,2]
[425997569,1782088241000,-403.27399368,0.00018081,2]
[425997627,1782088241000,-657.9619137,0.00018393,2]
[425997514,1782088241000,-513.54065887,0.00017807,2]
[425997512,1782088241000,-500.0,0.00017807,2]
[425997521,1782088241000,-500.0,0.00017808,2]
[425997516,1782088241000,-500.0,0.00017808,2]
[425997518,1782088241000,-500.0,0.00017808,2]
[425997519,1782088241000,-500.0,0.00017808,2]
[425997533,1782088241000,-1088.78,0.00018053,2]
[425997527,1782088241000,-4056.39280265,0.000179,2]
[425997535,1782088241000,-500.0,0.00018078,2]
[425997525,1782088241000,-500.0,0.00017882,2]
[425997523,1782088241000,-500.0,0.00017882,2]
[425997530,1782088241000,-500.0,0.00018053,2]
[425997531,1782088241000,-692.39,0.00018053,2]
[425997537,1782088241000,-500.0,0.00018078,2]
[425997543,1782088241000,-500.0,0.00018078,2]
[425997539,1782088241000,-500.0,0.00018078,2]
[425997541,1782088241000,-500.0,0.00018078,2]
[425997551,1782088241000,-500.0,0.00018078,2]
[425997549,1782088241000,-500.0,0.00018078,2]
[425997553,1782088241000,-587.83,0.00018078,2]
[425997555,1782088241000,-514.55,0.00018079,2]
[425997557,1782088241000,-1613.61,0.0001808,2]
[425997545,1782088241000,-500.0,0.00018078,2]
[425997559,1782088241000,-500.0,0.0001808,2]
[425997547,1782088241000,-500.0,0.00018078,2]
[425997561,1782088241000,-500.0,0.0001808,2]
[425997563,1782088241000,-4024.43,0.0001808,2]
[425997567,1782088241000,-500.0,0.0001808,2]
[425997573,1782088241000,-290.23,0.00018082,2]
[425997632,1782088241000,-157.52,0.0001843,2]
[425997585,1782088241000,-500.0,0.00018327,2]
[425997631,1782088241000,-500.0,0.0001843,2]
[425997702,1782088241000,-416.25,0.000189,2]
[425997708,1782088241000,-188.14,0.000189,2]
[425997710,1782088241000,-500.0,0.000189,2]
[425997712,1782088241000,-500.0,0.000189,2]
[425997704,1782088241000,-500.0,0.000189,2]
[425997714,1782088241000,-500.0,0.000189,2]
[425997706,1782088241000,-500.0,0.000189,2]
[425997717,1782088241000,-587.83,0.000189,2]
[425997719,1782088241000,-514.55,0.00018901,2]
[425997721,1782088241000,-1613.61,0.00018902,2]
[425997739,1782088241000,-1514.68,0.000191,2]
[425997723,1782088241000,-500.0,0.00018902,2]
[425997734,1782088241000,-4056.39280265,0.00019,2]
[425997732,1782088241000,-500.0,0.00018904,2]
[425997715,1782088241000,-500.0,0.000189,2]
[425997736,1782088241000,-720.0,0.00019057,2]
[425997738,1782088241000,-1514.68,0.000191,2]
[425997728,1782088241000,-4024.43,0.00018902,2]
[425997726,1782088241000,-500.0,0.00018902,2]
[425997744,1782088241000,-500.0,0.00019149,2]
[425997745,1782088241000,-692.39,0.00019149,2]
[425997742,1782088241000,-657.9619137,0.00019146,2]
[425997746,1782088241000,-1088.78,0.00019149,2]
[425997748,1782088241000,-524.94,0.00019174,2]
[425997749,1782088241000,-500.0,0.00019174,2]
[425997752,1782088241000,-500.0,0.00019174,2]
[425997750,1782088241000,-380.48,0.00019174,2]
[425997754,1782088241000,-514.55,0.00019175,2]
[425997753,1782088241000,-587.83,0.00019174,2]
[425997751,1782088241000,-500.0,0.00019174,2]
[425997730,1782088241000,-500.0,0.00018902,2]
[425997700,1782088241000,-257.421,0.00018893,2]
[425997636,1782088241000,-4056.39280265,0.000186,2]
[425997698,1782088241000,-1088.78,0.00018875,2]
[425997639,1782088241000,-500.0,0.00018601,2]
[425997640,1782088241000,-692.39,0.00018601,2]
[425997642,1782088241000,-1088.78,0.00018601,2]
[425997646,1782088241000,-500.0,0.00018626,2]
[425997650,1782088241000,-500.0,0.00018626,2]
[425997648,1782088241000,-500.0,0.00018626,2]
[425997644,1782088241000,-418.13,0.00018626,2]
[425997652,1782088241000,-500.0,0.00018626,2]
[425997654,1782088241000,-500.0,0.00018626,2]
[425997658,1782088241000,-500.0,0.00018626,2]
[425997656,1782088241000,-500.0,0.00018626,2]
[425997662,1782088241000,-587.83,0.00018626,2]
[425997660,1782088241000,-500.0,0.00018626,2]
[425997664,1782088241000,-514.55,0.00018627,2]
[425997672,1782088241000,-4024.43,0.00018628,2]
[425997692,1782088241000,-9114.29066901,0.0001881,2]
[425997676,1782088241000,-648.26,0.00018628,2]
[425997684,1782088241000,-163.54844138,0.0001868,2]
[425997747,1782088241000,-500.0,0.00019174,2]
[425997694,1782088241000,-500.0,0.00018875,2]
[425997690,1782088241000,-4056.39280265,0.000188,2]
[425997678,1782088241000,-500.0,0.0001863,2]
[425997686,1782088241000,-727.27272727,0.0001868,2]
[425997696,1782088241000,-692.39,0.00018875,2]
[425997679,1782088241000,-602.25,0.0001863,2]
[425997666,1782088241000,-1613.61,0.00018628,2]
[425997670,1782088241000,-500.0,0.00018628,2]
[425997688,1782088241000,-249.17,0.00018704,2]
[425997668,1782088241000,-500.0,0.00018628,2]
[425997674,1782088241000,-500.0,0.00018628,2]
[425997682,1782088241000,-151.75909382,0.0001868,2]
[425997834,1782088242000,-500.0,0.00019724,2]
[425997827,1782088242000,-587.83,0.00019722,2]
[425997830,1782088242000,-1613.61,0.00019724,2]
[425997819,1782088242000,-500.0,0.00019722,2]
[425997828,1782088242000,-514.55,0.00019723,2]
[425997825,1782088242000,-500.0,0.00019722,2]
[425997823,1782088242000,-500.0,0.00019722,2]
[425997814,1782088242000,-472.93557955,0.00019697,2]
[425997809,1782088242000,-545.45454545,0.00019458,2]
[425997811,1782088242000,-10000.0,0.00019526,2]
[425997839,1782088242000,-657.9619137,0.000199,2]
[425997821,1782088242000,-500.0,0.00019722,2]